bitfinex-derivatives/quotes_ETHF0:USTF0_20250114
["timestamp","ask_amount","ask_price","bid_price","bid_amount"]
[1736870963786,5.2008,3190.7,3190.3,0.31355]
[1736870963787,3.67084263,3190.4,3190.3,0.31355]
[1736870963979,3.35729263,3190.4,3190.3,0.31355]
[1736870964184,3.6708,3190.7,3190.0,7.67027887]
[1736870964389,0.31354,3190.5,3190.4,0.31354]
[1736870964591,0.31355,3190.4,3190.3,0.31355]
[1736870964888,0.3136,3189.9,3189.8,0.3136]
[1736870965083,0.3136,3189.9,3189.8,41.1136]
[1736870965278,0.3136,3189.9,3189.8,40.8]
[1736870965476,3.37917179,3189.9,3189.5,3.2078]
[1736870965681,3.37917179,3189.9,3189.7,0.31361]
[1736870965891,1.53,3190.1,3189.9,0.31359]
[1736870965892,3.69276179,3190.0,3189.9,0.31359]
[1736870966183,0.31358,3190.0,3189.9,40.8]
[1736870966395,0.31358,3190.0,3189.2,0.4938]
[1736870966396,0.31365,3189.4,3189.2,0.31365]
[1736870966589,0.78399,3189.9,3189.1,6.88632887]
[1736870966590,0.4832,3189.9,3189.1,6.88632887]
[1736870966788,3.2078,3190.1,3189.6,3.67852887]
[1736870967089,0.31356,3190.3,3190.2,0.31356]
[1736870967285,5.221,3190.6,3189.7,40.8]
[1736870967486,3.44080482,3190.3,3189.7,40.8]
[1736870967691,0.31358,3190.1,3190.0,0.31358]
[1736870967995,0.31357,3190.2,3190.0,0.31357]
[1736870968293,0.31357,3190.2,3189.7,40.8]
[1736870968294,2.31387,3190.5,3189.7,40.8]
[1736870968485,3.691,3190.6,3190.0,3.2078]
[1736870968486,3.39227178,3190.1,3190.0,3.2078]
[1736870968681,3.39227178,3190.4,3190.3,0.31355]
[1736870968984,0.31357,3190.1,3190.0,6.88632887]
[1736870969191,0.3136,3189.9,3189.7,41.11361]
[1736870969399,3.2078,3190.3,3189.7,40.8]
[1736870969691,3.2078,3190.3,3190.0,3.67852887]
[1736870969989,0.31354,3190.5,3190.3,0.31355]
[1736870970294,3.3932156,3190.4,3190.0,3.67852887]
[1736870970489,0.31356,3190.3,3190.1,0.31357]
[1736870970693,0.31356,3190.3,3190.0,3.67852887]
[1736870970694,0.31354,3190.5,3190.3,0.31355]
[1736870970891,0.31354,3190.5,3190.0,3.67852887]
[1736870971091,3.7067656,3190.4,3190.2,0.31356]
[1736870971396,3.2078,3190.7,3190.3,3.2078]
[1736870971597,3.2078,3190.7,3190.6,0.31353]
[1736870972090,5.05128,3191.1,3190.9,0.3135]
[1736870972294,5.05128,3191.1,3190.8,3.67852887]
[1736870972497,3.56329525,3191.0,3190.9,0.3135]
[1736870972791,3.2078,3191.1,3191.0,0.31349]
[1736870973789,3.2078,3191.1,3191.0,3.63424358]
[1736870973991,3.2078,3191.1,3191.0,44.43424358]
[1736870975091,0.31344,3191.5,3191.2,0.31346]
[1736870975292,3.52122,3191.7,3191.5,3.63418358]
[1736870975492,0.31343,3191.6,3191.5,3.32075358]
[1736870976097,0.31342,3191.7,3191.5,3.63418358]
[1736870976289,0.31343,3191.6,3191.5,3.32075358]
[1736870977088,0.31342,3191.7,3191.6,0.31343]
[1736870977293,3.99127,3192.1,3191.5,3.32075358]
[1736870977294,3.2078,3192.1,3191.5,3.32075358]
[1736870977495,3.2078,3192.1,3192.0,0.31339]
[1736870977697,3.52118,3192.1,3192.0,1.01916924]
[1736870977999,3.52118,3192.1,3192.0,1.33255924]
[1736870978196,3.2078,3192.1,3192.0,1.33255924]
[1736870978386,3.52118,3192.1,3192.0,1.33255924]
[1736870978800,3.2078,3192.1,3192.0,1.33255924]
[1736870979094,3.2078,3192.1,3192.0,1.33244833]
[1736870979496,3.52114,3192.6,3192.1,0.31338]
[1736870979701,3.52114,3192.6,3192.4,3.63410358]
[1736870980002,6.58101907,3192.6,3192.5,0.70526475]
[1736870980300,6.89434907,3192.6,3192.5,41.19192475]
[1736870980698,6.58101907,3192.6,3192.5,0.70526475]
[1736870980899,6.89434907,3192.6,3192.5,0.70526475]
[1736870981196,6.89434907,3192.6,3192.5,41.11334]
[1736870981600,0.31339,3192.0,3191.7,0.31342]
[1736870981896,0.3134,3191.9,3191.8,0.39194991]
[1736870982100,3.54277337,3191.9,3191.8,4.02611349]
[1736870982291,0.31337,3192.2,3192.1,0.31337]
[1736870982492,0.31334,3192.5,3192.2,0.31337]
[1736870982688,3.2078,3192.6,3191.8,3.32075358]
[1736870982894,0.3134,3191.9,3191.8,3.32075358]
[1736870983096,3.2078,3192.2,3191.8,3.71274017]
[1736870983300,0.3134,3192.0,3191.9,0.31339]
[1736870983704,3.4871346,3192.1,3192.0,0.31339]
[1736870983902,3.2078,3192.6,3192.0,0.39196613]
[1736870984103,0.31337,3192.2,3192.1,0.39196613]
[1736870984303,0.78335,3192.5,3191.8,3.32075358]
[1736870984504,0.31339,3192.0,3191.9,0.7053541]
[1736870984706,0.31339,3192.0,3191.9,0.3919641]
[1736870985004,0.3134,3191.9,3191.8,3.32075358]
[1736870985200,0.3134,3191.9,3191.8,0.31341]
[1736870985408,0.31342,3191.8,3191.7,0.31341]
[1736870985602,0.31342,3191.8,3191.7,0.39201007]
[1736870985806,3.4681007,3191.8,3191.5,3.32075358]
[1736870986102,0.31343,3191.6,3191.5,3.32075358]
[1736870986402,0.31346,3191.3,3191.2,40.8]
[1736870986599,0.31346,3191.3,3191.2,41.19204858]
[1736870986796,0.31346,3191.3,3190.8,0.4702]
[1736870986797,0.31349,3191.0,3190.9,0.31349]
[1736870986997,0.31349,3191.0,3190.9,0.70557157]
[1736870987199,0.31349,3191.0,3190.9,0.39209031]
[1736870987400,7.07613348,3191.0,3190.9,40.8]
[1736870988906,11.76264348,3191.0,3190.2,3.32075358]
[1736870989106,0.4523,3190.9,3190.3,0.39216346]
[1736870989402,3.2078,3190.6,3189.2,0.4759]
[1736870989605,0.31357,3190.1,3189.5,0.31362]
[1736870989803,1.539,3190.0,3189.4,0.31364]
[1736870990102,0.31365,3189.3,3189.2,3.63441358]
[1736870990308,0.31365,3189.3,3189.2,3.71304841]
[1736870990609,0.31369,3189.0,3188.9,0.31369]
[1736870990806,0.31369,3189.0,3188.9,0.70602417]
[1736870991002,0.31369,3189.0,3188.9,0.39233417]
[1736870991703,0.31369,3188.9,3188.8,40.8]
[1736870992802,8.35026942,3188.9,3188.2,0.31376]
[1736870993003,0.31375,3188.4,3188.0,0.4858]
[1736870993206,0.31375,3188.4,3188.1,0.70617791]
[1736870993413,3.48554392,3188.3,3188.2,40.8]
[1736870993705,3.48554392,3188.3,3188.2,41.11376]
[1736870994009,0.31372,3188.7,3188.4,0.31374]
[1736870994508,0.31372,3188.6,3188.4,0.31374]
[1736870994904,6.6786972,3189.0,3188.5,0.31373]
[1736870995105,0.31369,3188.9,3188.5,0.31373]
[1736870995305,6.6786972,3189.0,3188.6,0.31372]
[1736870995506,6.6786972,3189.0,3188.2,44.0078]
[1736870995704,0.31375,3188.4,3188.2,44.0078]
[1736870996111,0.31375,3188.3,3188.2,44.0078]
[1736870996500,3.93383267,3188.3,3188.2,44.0078]
[1736870996704,0.31375,3188.3,3188.2,44.0078]
[1736870997607,0.31375,3188.3,3188.2,40.8]
[1736870998407,3.2078,3188.4,3188.2,40.8]
[1736870998616,3.2078,3188.9,3188.3,3.67539434]
[1736870998913,3.5215,3188.9,3188.7,0.31371]
[1736870999105,3.2078,3188.9,3188.3,3.67539434]
[1736870999308,3.52149,3188.9,3188.8,40.8]
[1736870999822,3.2078,3188.9,3188.8,40.8]
[1736871000116,3.52149,3188.9,3188.8,40.8]
[1736871000415,3.52149,3188.9,3187.9,3.67539434]
[1736871000416,0.31378,3188.1,3187.9,3.67539434]
[1736871000913,4.7478,3188.5,3187.5,3.67539434]
[1736871001115,0.31382,3187.6,3187.5,3.67539434]
[1736871001316,0.31381,3187.8,3187.5,0.31383]
[1736871001512,3.2078,3188.1,3187.5,0.31383]
[1736871001812,0.31383,3187.5,3187.4,0.4789]
[1736871002019,3.2078,3187.7,3187.1,3.67539434]
[1736871002312,0.31385,3187.3,3187.0,0.31387]
[1736871002505,0.31386,3187.3,3186.9,0.76868]
[1736871002707,3.26949686,3187.6,3187.1,3.67539434]
[1736871003008,3.2078,3188.1,3187.5,3.67539434]
[1736871003213,0.31381,3187.8,3187.5,3.67539434]
[1736871003514,3.37800588,3188.3,3187.7,3.2078]
[1736871003817,3.2078,3188.8,3188.1,3.2078]
[1736871004108,0.31373,3188.6,3188.2,0.31376]
[1736871004314,3.2078,3188.8,3188.0,3.67539434]
[1736871004502,0.31375,3188.4,3187.9,3.67539434]
[1736871004701,0.31373,3188.6,3188.3,0.31375]
[1736871004908,3.2078,3188.8,3187.9,3.67539434]
[1736871005104,0.31377,3188.2,3187.9,3.98918434]
[1736871005312,0.31373,3188.6,3187.9,3.67539434]
[1736871005514,0.31372,3188.7,3188.4,0.31374]
[1736871005711,0.31373,3188.6,3188.4,0.31374]
[1736871005912,3.2078,3189.2,3188.3,3.67539434]
[1736871006111,3.2078,3189.2,3188.2,3.2078]
[1736871006307,3.55021594,3188.5,3187.9,4.16089434]
[1736871006503,3.2078,3188.4,3187.9,0.79929]
[1736871006708,0.31378,3188.0,3187.9,0.4855]
[1736871007220,0.3138,3187.8,3187.7,40.8]
[1736871007405,0.78439,3188.3,3187.7,40.8]
[1736871007611,3.6397975,3188.3,3187.9,3.67539434]
[1736871007813,0.31375,3188.3,3188.1,0.31377]
[1736871008013,3.2078,3188.4,3187.9,3.67539434]
[1736871008214,0.31377,3188.2,3188.0,0.31378]
[1736871008417,3.45009641,3188.3,3187.7,40.8]
[1736871008620,0.3138,3187.8,3187.7,40.8]
[1736871009122,3.45009641,3188.3,3187.7,40.8]
[1736871009320,3.45009641,3188.3,3187.7,44.0078]
[1736871009622,0.31377,3188.2,3188.0,0.31378]
[1736871009921,0.31378,3188.1,3187.9,0.31379]
[1736871010314,3.2078,3188.4,3187.7,44.0078]
[1736871010620,0.31379,3188.0,3187.8,0.31379]
[1736871010812,3.50464372,3188.3,3187.7,44.0078]
[1736871011009,0.31376,3188.2,3188.0,0.31378]
[1736871011219,3.2078,3188.8,3188.6,0.31372]
[1736871011416,0.31372,3188.7,3188.5,0.31373]
[1736871011611,0.31372,3188.6,3188.5,0.31373]
[1736871011817,3.2078,3188.8,3188.2,0.4813]
[1736871012017,0.31375,3188.3,3188.2,0.4813]
[1736871012216,3.44470786,3188.7,3188.2,0.4813]
[1736871012420,0.31369,3189.0,3188.3,3.67539434]
[1736871012724,3.6666,3189.6,3188.7,3.67539434]
[1736871012925,3.52143,3189.6,3189.4,0.31364]
[1736871013221,3.52143,3189.6,3189.1,3.67539434]
[1736871013222,0.31361,3189.8,3189.6,0.31362]
[1736871013524,0.31361,3189.7,3189.6,3.32381165]
[1736871014219,0.31361,3189.8,3189.6,3.63743165]
[1736871014618,6.75363209,3190.0,3189.6,3.32381165]
[1736871014826,7.06722209,3190.0,3189.8,0.3136]
[1736871015125,0.31361,3189.8,3189.6,3.63743165]
[1736871015319,6.75363209,3190.0,3189.6,3.32381165]
[1736871015518,0.31361,3189.7,3189.6,3.32381165]
[1736871015720,0.31361,3189.7,3188.9,4.47102]
[1736871015721,0.78402,3189.8,3189.0,3.32381165]
[1736871016022,3.2078,3189.6,3189.0,3.32381165]
[1736871016227,3.2078,3189.6,3188.9,3.2078]
[1736871016228,0.31364,3189.4,3189.3,3.32381165]
[1736871016724,3.86304871,3189.4,3189.3,3.32381165]
[1736871017316,3.54940871,3189.4,3189.1,0.31367]
[1736871017517,3.2078,3189.2,3188.5,3.2078]
[1736871017723,3.2078,3188.8,3188.3,0.01183]
[1736871018018,0.31374,3188.4,3188.3,0.01183]
[1736871018224,3.52154,3188.4,3188.3,0.01183]
[1736871018421,0.31379,3187.9,3187.8,3.32381165]
[1736871018624,0.31379,3187.9,3187.8,4.65804061]
[1736871018928,3.72505611,3187.9,3187.8,3.7162889]
[1736871019123,5.26805611,3187.9,3187.8,0.39247725]
[1736871019331,4.95426611,3187.9,3187.6,40.8]
[1736871019624,4.95426611,3187.9,3187.7,0.39250853]
[1736871019827,4.95426611,3187.9,3187.5,3.32381165]
[1736871020020,0.31381,3187.7,3187.6,0.38978481]
[1736871020425,3.79812083,3187.7,3187.6,0.38978481]
[1736871020627,0.31381,3187.7,3187.6,0.70358921]
[1736871022430,3.2078,3188.0,3187.6,0.38976921]
[1736871022731,0.31381,3187.8,3187.7,0.38969527]
[1736871022925,0.31381,3187.8,3187.7,40.8]
[1736871023120,0.31386,3187.2,3187.1,3.2078]
[1736871023316,1.543,3187.6,3187.1,3.59741782]
[1736871023528,1.543,3187.6,3187.3,3.32381165]
[1736871023730,0.31384,3187.4,3187.3,3.32381165]
[1736871023929,0.31385,3187.3,3187.2,40.8]
[1736871024427,3.88168983,3187.3,3187.2,40.8]
[1736871024631,0.4527,3187.7,3187.2,40.8]
[1736871024817,0.31382,3187.7,3187.5,0.31383]
[1736871025019,3.2078,3188.0,3187.6,0.38955186]
[1736871025227,3.2078,3188.0,3187.9,3.63760165]
[1736871025430,3.2078,3188.0,3187.9,4.02715351]
[1736871025731,0.31376,3188.3,3188.1,0.31377]
[1736871026026,0.31378,3188.0,3187.9,44.12381165]
[1736871026229,0.31378,3188.1,3187.9,44.82704205]
[1736871026531,0.31378,3188.1,3188.0,0.3894504]
[1736871026727,0.31378,3188.0,3187.9,40.8]
[1736871026925,0.31383,3187.6,3187.4,0.31384]
[1736871027225,4.7508,3187.9,3187.5,0.3895294]
[1736871027423,0.3138,3187.8,3187.7,0.31381]
[1736871027620,8.04856904,3187.9,3187.5,40.8]
[1736871027817,3.29776904,3187.8,3187.7,0.31381]
[1736871028023,4.7508,3188.3,3187.7,0.38945635]
[1736871028218,3.29776904,3188.2,3187.8,0.38945635]
[1736871028426,4.7508,3188.3,3187.5,40.8]
[1736871028624,3.55797794,3188.2,3187.5,40.8]
[1736871028828,3.55797794,3188.2,3188.0,0.31377]
[1736871029027,3.87173794,3188.2,3188.1,0.31377]
[1736871029222,3.55797794,3188.2,3188.1,0.70322963]
[1736871029724,0.31376,3188.2,3188.1,0.70322963]
[1736871030021,0.31375,3188.3,3188.1,0.38945076]
[1736871030332,0.31379,3187.9,3187.8,0.31379]
[1736871030529,0.31379,3187.9,3187.8,0.38950835]
[1736871030825,0.31386,3187.2,3187.1,3.2078]
[1736871031032,0.31386,3187.2,3187.1,3.59736178]
[1736871031933,3.94014693,3187.2,3187.1,3.59736178]
[1736871032225,0.31386,3187.2,3187.1,0.3894899]
[1736871032429,0.31396,3186.2,3186.1,3.2078]
[1736871032725,0.31396,3186.2,3186.1,3.59730407]
[1736871032930,0.31396,3186.2,3186.1,4.08812687]
[1736871033128,0.31396,3186.2,3186.1,44.88812687]
[1736871033332,3.69754795,3186.2,3186.1,44.0078]
[1736871033632,3.69754795,3186.2,3186.1,40.8]
[1736871034027,0.31396,3186.2,3186.1,40.8]
[1736871034221,3.73617278,3186.2,3186.1,40.8]
[1736871034528,3.42221278,3186.2,3185.8,0.314]
[1736871034721,0.31399,3186.0,3185.9,0.38889722]
[1736871035028,0.31399,3186.0,3185.9,40.8]
[1736871035922,0.31404,3185.4,3185.3,0.4996]
[1736871036122,0.31408,3185.0,3184.9,0.4824]
[1736871036328,3.2960266,3185.4,3184.9,0.87099217]
[1736871036631,3.99292,3185.4,3184.7,6.8854355]
[1736871036827,3.2078,3185.4,3184.6,40.8]
[1736871037028,0.31411,3184.7,3184.6,40.8]
[1736871038531,0.31413,3184.5,3184.4,0.4971]
[1736871038927,3.54930671,3184.5,3183.9,3.2078]
[1736871039126,3.2078,3184.2,3183.5,6.8854355]
[1736871039329,1.528,3184.1,3183.3,0.4712]
[1736871039531,0.31423,3183.5,3183.3,0.4712]
[1736871039732,0.31422,3183.6,3183.3,0.4712]
[1736871039934,5.11846196,3184.1,3183.3,0.4712]
[1736871040134,5.11846196,3184.1,3183.3,0.78544]
[1736871040135,0.31418,3184.0,3183.3,0.78544]
[1736871040330,0.3142,3183.8,3183.5,3.6776355]
[1736871040535,3.26947866,3183.9,3183.3,0.78544]
[1736871040729,3.26947866,3183.9,3183.3,0.4712]
[1736871040931,3.26947866,3184.0,3183.3,0.4712]
[1736871041127,0.3142,3183.8,3183.3,0.78544]
[1736871041327,0.31419,3183.9,3183.4,0.31423]
[1736871041529,3.69853564,3184.0,3183.5,3.9918555]
[1736871041737,3.38435564,3183.8,3183.5,3.9918555]
[1736871041931,0.31421,3183.7,3183.5,3.6776355]
[1736871042240,0.31425,3183.3,3183.1,6.8854355]
[1736871042438,0.31423,3183.5,3183.1,6.8854355]
[1736871042930,3.2078,3183.8,3183.1,6.8854355]
[1736871043135,0.3142,3183.7,3183.2,40.8]
[1736871043331,0.31422,3183.6,3183.2,40.8]
[1736871043535,0.31422,3183.6,3183.2,41.11425]
[1736871043737,3.61085228,3183.5,3183.2,40.8]
[1736871044130,3.29662228,3183.6,3183.2,40.8]
[1736871044331,3.29662228,3183.4,3183.2,40.8]
[1736871044637,3.27895625,3183.5,3183.2,40.8]
[1736871044833,3.27895625,3183.5,3183.2,41.11425]
[1736871045031,3.2078,3183.8,3183.2,40.8]
[1736871045532,0.31422,3183.5,3183.2,41.11425]
[1736871045737,0.31422,3183.5,3183.2,40.8]
[1736871046037,0.31422,3183.5,3183.2,41.11425]
[1736871046237,0.31423,3183.5,3183.2,40.8]
[1736871046436,3.55807005,3183.4,3183.2,40.8]
[1736871046939,3.522,3183.8,3183.2,40.8]
[1736871047238,3.55589547,3183.7,3183.2,40.8]
[1736871047538,1.528,3184.1,3183.2,41.11425]
[1736871047539,0.31423,3183.5,3183.2,41.11425]
[1736871047737,0.31419,3183.9,3183.2,40.8]
[1736871047939,3.3260334,3184.0,3183.6,3.2078]
[1736871048135,3.2078,3184.8,3183.9,3.6776355]
[1736871048442,3.2078,3184.8,3184.0,6.8854355]
[1736871048636,3.47037318,3184.6,3184.5,0.31413]
[1736871048933,3.47037318,3184.6,3184.3,40.8]
[1736871049139,3.47037318,3184.6,3184.5,0.31413]
[1736871049437,3.2078,3184.8,3184.3,40.8]
[1736871049638,3.52194,3184.4,3184.3,40.8]
[1736871049828,4.7368,3184.4,3183.2,3.2078]
[1736871050035,0.31422,3183.6,3183.4,0.31423]
[1736871050231,3.2078,3184.0,3183.4,3.33677612]
[1736871050428,3.52198,3184.0,3183.8,0.31419]
[1736871050741,0.9445,3184.3,3183.8,0.31419]
[1736871050742,3.51907941,3183.9,3183.8,0.31419]
[1736871051040,0.31417,3184.1,3183.9,0.31418]
[1736871051237,3.51907941,3184.2,3184.1,0.31417]
[1736871051534,0.31416,3184.2,3184.1,6.54457612]
[1736871051834,3.2078,3184.5,3183.8,3.33677612]
[1736871052039,0.31416,3184.2,3184.1,44.13677612]
[1736871052736,3.41748784,3184.4,3184.1,44.13677612]
[1736871052939,3.41748784,3184.4,3184.3,0.31415]
[1736871053137,4.1726,3184.9,3184.5,0.31412]
[1736871053337,0.31411,3184.7,3184.6,3.33677612]
[1736871053640,3.598607,3184.8,3184.3,3.33677612]
[1736871053934,0.31413,3184.6,3184.3,3.33677612]
[1736871054136,0.31413,3184.5,3184.4,0.31413]
[1736871054338,0.31414,3184.4,3184.3,3.33677612]
[1736871054533,0.31414,3184.4,3184.1,40.8]
[1736871054534,0.31416,3184.2,3184.1,40.8]
[1736871054737,6.63069111,3184.4,3183.6,3.33677612]
[1736871054936,3.42289111,3184.2,3184.0,3.33677612]
[1736871055136,0.31414,3184.4,3184.0,3.33677612]
[1736871055340,0.31414,3184.4,3184.2,0.31415]
[1736871055541,3.2078,3184.5,3184.0,3.33677612]
[1736871055741,3.2078,3184.5,3184.4,3.65091612]
[1736871056041,3.2078,3184.9,3184.4,3.33677612]
[1736871056542,3.77049176,3184.8,3184.4,3.33677612]
[1736871056932,3.77049176,3184.8,3184.6,0.31411]
[1736871057234,0.31411,3184.7,3184.6,0.31411]
[1736871057640,3.45639176,3184.8,3184.7,0.31411]
[1736871057839,3.2078,3185.3,3185.2,0.31406]
[1736871058038,3.2078,3185.9,3185.2,3.33677612]
[1736871058643,0.314,3185.8,3185.7,3.33677612]
[1736871058844,3.2078,3185.9,3185.4,3.33677612]
[1736871059036,0.31403,3185.5,3185.4,3.33677612]
[1736871059639,0.4822,3186.2,3185.8,0.314]
[1736871059942,3.6675,3186.3,3185.9,3.33677612]
[1736871060140,0.31396,3186.2,3185.9,3.33677612]
[1736871060343,3.59055055,3186.2,3185.9,3.33677612]
[1736871060538,6.79835055,3186.2,3185.6,3.33677612]
[1736871060742,0.4597,3186.3,3185.4,3.2078]
[1736871060743,0.31396,3186.3,3186.0,3.65074612]
[1736871061044,0.31397,3186.1,3186.0,3.33677612]
[1736871061250,3.50106096,3186.2,3186.0,3.33677612]
[1736871061550,0.31397,3186.1,3186.0,3.33677612]
[1736871061846,3.40236829,3186.1,3185.4,3.33677612]
[1736871062045,3.40236829,3186.1,3185.8,3.33677612]
[1736871062352,3.2078,3186.2,3185.8,3.33677612]
[1736871062544,0.31396,3186.2,3186.0,0.31398]
[1736871062852,0.31396,3186.2,3185.9,40.8]
[1736871062853,3.99261,3186.6,3185.9,40.8]
[1736871063146,0.31398,3186.0,3185.9,40.8]
[1736871063347,3.2078,3186.2,3185.4,3.33677612]
[1736871063649,3.2078,3185.7,3184.8,0.4734]
[1736871063945,3.2078,3185.7,3184.4,0.25183708]
[1736871063946,0.31413,3184.5,3184.3,3.65091612]
[1736871064144,0.31411,3184.8,3184.5,0.31412]
[1736871064347,0.31414,3184.4,3184.3,3.33677612]
[1736871064651,0.31417,3184.1,3184.0,3.2078]
[1736871064842,0.31417,3184.1,3184.0,3.59675033]
[1736871065044,0.31416,3184.2,3184.0,3.2078]
[1736871065246,3.2078,3184.6,3184.0,3.2078]
[1736871065454,3.2078,3184.6,3184.5,3.65090612]
[1736871065647,3.2078,3184.6,3184.5,3.72318451]
[1736871065838,3.2078,3184.6,3184.5,3.33677612]
[1736871065839,3.52192,3184.6,3184.5,3.33677612]
[1736871066045,6.63993798,3184.6,3184.2,3.33677612]
[1736871066240,6.95405798,3184.6,3184.4,0.31413]
[1736871066446,0.31415,3184.3,3184.2,3.33677612]
[1736871066652,0.31414,3184.4,3184.2,3.33677612]
[1736871066844,0.31415,3184.3,3184.1,0.31416]
[1736871067053,3.41957621,3184.5,3184.0,6.54457612]
[1736871067359,0.31416,3184.2,3184.1,0.38652877]
[1736871067552,3.41957621,3184.5,3184.1,0.38652877]
[1736871067759,0.31415,3184.3,3184.1,0.31416]
[1736871068364,6.81529302,3184.2,3183.7,3.33677612]
[1736871068660,0.31417,3184.1,3183.8,0.7007537]
[1736871068856,3.5684078,3184.4,3183.7,3.33677612]
[1736871069160,3.2078,3184.6,3184.5,0.31413]
[1736871069357,3.2078,3184.6,3184.5,3.33677612]
[1736871069554,6.79139767,3184.6,3184.1,44.13677612]
[1736871069757,3.2078,3184.6,3184.2,0.38652302]
[1736871069952,0.31409,3185.0,3184.7,0.3141]
[1736871070160,3.99291,3185.4,3184.5,3.33677612]
[1736871070463,3.58359767,3184.9,3184.8,0.3141]
[1736871070660,0.31407,3185.1,3184.9,0.31409]
[1736871070868,0.31407,3185.1,3184.8,0.31409]
[1736871071166,3.45786118,3185.0,3184.9,0.31409]
[1736871071366,3.45786118,3185.0,3184.7,0.31411]
[1736871071568,3.45786118,3185.0,3184.6,40.8]
[1736871071866,0.3141,3184.9,3184.7,0.3141]
[1736871072165,3.45786118,3185.0,3184.9,0.31409]
[1736871072361,3.2078,3185.4,3184.9,3.33677612]
[1736871072556,3.2078,3185.4,3185.3,3.65082612]
[1736871073063,3.2078,3185.8,3185.3,3.33677612]
[1736871073262,0.31403,3185.5,3185.3,3.65081612]
[1736871073476,3.2078,3185.8,3185.3,3.33677612]
[1736871073763,3.661,3186.2,3185.7,3.33677612]
[1736871073969,3.2078,3186.6,3186.1,3.33677612]
[1736871074267,3.51595984,3186.4,3186.3,0.31395]
[1736871074659,0.76709,3186.9,3186.8,0.3139]
[1736871074862,0.76709,3186.9,3186.2,0.78489]
[1736871074863,0.31391,3186.7,3186.6,0.31392]
[1736871075063,3.28122495,3186.8,3186.6,40.8]
[1736871075368,0.3139,3186.9,3186.6,40.8]
[1736871075566,3.2078,3187.1,3187.0,0.31388]
[1736871077168,3.52167,3187.1,3186.9,0.31389]
[1736871077365,3.2078,3187.1,3186.9,0.31389]
[1736871077667,3.2078,3187.1,3187.0,0.31388]
[1736871078166,0.4827,3187.5,3186.7,0.78478]
[1736871078468,3.32766544,3187.4,3186.7,3.2078]
[1736871078769,3.64150544,3187.4,3187.1,0.31387]
[1736871078968,3.32766544,3187.4,3187.3,0.31385]
[1736871079166,0.4659,3188.3,3187.3,3.2078]
[1736871079374,0.31376,3188.2,3187.8,0.3138]
[1736871079575,0.31377,3188.2,3187.9,40.8]
[1736871079763,3.33074944,3188.1,3187.9,40.8]
[1736871079965,3.33074944,3188.1,3188.0,0.31378]
[1736871080166,3.2078,3188.4,3188.0,0.31378]
[1736871080368,3.2078,3188.4,3188.3,0.31375]
[1736871080574,3.71268658,3188.9,3188.3,3.67947936]
[1736871080776,0.4793,3189.4,3188.8,3.2078]
[1736871081070,3.28211946,3189.3,3188.9,0.31369]
[1736871081273,3.28211946,3189.3,3188.8,3.2078]
[1736871081575,3.28211946,3189.3,3188.9,0.31369]
[1736871082067,3.28211946,3189.3,3189.0,0.31368]
[1736871082272,3.59576946,3189.3,3188.9,0.31369]
[1736871082472,3.59576946,3189.3,3188.8,3.52149]
[1736871082675,3.28211946,3189.3,3188.8,3.2078]
[1736871082966,3.59576946,3189.3,3188.8,3.5215]
[1736871083173,3.28211946,3189.3,3188.9,0.31369]
[1736871083568,3.28211946,3189.3,3189.0,0.31368]
[1736871083872,3.28211946,3189.3,3188.9,0.31369]
[1736871084068,3.2078,3189.1,3188.7,3.67947936]
[1736871084277,0.31367,3189.1,3188.7,3.67947936]
[1736871084461,0.31367,3189.2,3188.7,3.99318936]
[1736871084667,0.31365,3189.4,3188.9,0.31369]
[1736871084969,0.31366,3189.3,3188.8,0.3137]
[1736871085168,3.52733392,3189.4,3188.7,3.67947936]
[1736871085375,3.52733392,3189.4,3189.1,3.67947936]
[1736871085675,0.31363,3189.5,3189.1,3.99314936]
[1736871085969,3.2078,3189.6,3189.2,40.8]
[1736871086165,3.52143,3189.6,3189.2,40.8]
[1736871086366,0.31365,3189.4,3188.9,0.31368]
[1736871086676,0.31364,3189.5,3189.0,0.31367]
[1736871086868,0.31364,3189.5,3189.0,41.11367]
[1736871087071,0.31364,3189.5,3189.1,0.31367]
[1736871087372,0.31365,3189.4,3189.0,41.11368]
[1736871087675,0.31365,3189.4,3189.0,41.11367]
[1736871087875,0.31365,3189.4,3189.1,0.31367]
[1736871088072,0.31364,3189.5,3189.2,0.31366]
[1736871088277,0.31363,3189.5,3189.2,0.31366]
[1736871088481,0.31363,3189.5,3189.0,40.8]
[1736871088672,3.2078,3189.6,3189.1,0.31367]
[1736871088864,0.31365,3189.4,3189.1,0.31367]
[1736871089676,0.31363,3189.5,3189.0,41.11368]
[1736871089973,0.31364,3189.5,3189.2,0.31366]
[1736871090276,0.31364,3189.4,3189.2,0.31366]
[1736871090481,3.2078,3189.6,3189.1,0.31367]
[1736871090683,0.31365,3189.3,3189.1,0.31367]
[1736871090872,0.31365,3189.4,3189.1,0.31367]
[1736871091176,3.2078,3189.6,3189.0,41.11368]
[1736871091177,0.31366,3189.3,3189.0,41.11368]
[1736871091369,0.31366,3189.3,3189.1,0.31367]
[1736871091569,0.31365,3189.4,3189.2,0.31366]
[1736871091776,3.2078,3189.6,3189.0,0.31368]
[1736871092173,3.2078,3189.6,3188.8,3.2078]
[1736871092373,0.31365,3189.4,3189.1,0.31367]
[1736871092575,3.2078,3189.6,3189.1,0.31367]
[1736871092778,0.31365,3189.3,3189.1,0.31367]
[1736871093677,0.31365,3189.3,3188.5,1.03612301]
[1736871093678,0.31367,3189.1,3188.5,0.31372]
[1736871093880,0.31367,3189.1,3188.3,7.34307936]
[1736871093881,0.31373,3188.5,3188.3,3.99322936]
[1736871094072,0.31373,3188.5,3188.3,3.67947936]
[1736871094273,3.2078,3188.7,3187.9,47.68727936]
[1736871094476,0.31376,3188.2,3187.9,47.68727936]
[1736871094683,0.31378,3188.1,3187.9,48.00106936]